[Event "Titled Tuesday Blitz August 1 Late 2023"]
[White "Cremisi, Daniel"]
[Black "Ardito, Andrew"]
[WhiteFideId "2089882"]
[BlackFideId "2033976"]
[WhiteElo "2514"]
[BlackElo "2112"]
[Result "1-0"]
[Round "1"]
[TimeControl "180+1"]
[Date "2023.08.01"]
[WhiteClock "0:02:37"]
[BlackClock "0:00:53"]
[Board "176"]

1. d4 {[%clk 0:03:00]}  Nf6 {[%clk 0:03:00]} 2. c4 {[%clk 0:03:00]}  g6 {[%clk 0:03:00]} 3. Nc3 {[%clk 0:03:00]}  Bg7 {[%clk 0:02:59]} 4. e4 {[%clk 0:03:00]}  O-O {[%clk 0:02:59]} 5. h3 {[%clk 0:03:01]}  d6 {[%clk 0:02:59]} 6. Bg5 {[%clk 0:03:01]}  c6 {[%clk 0:02:53]} 7. Nf3 {[%clk 0:03:02]}  Qa5 {[%clk 0:02:50]} 8. Qd2 {[%clk 0:03:01]}  e5 {[%clk 0:02:47]} 9. d5 {[%clk 0:02:58]}  cxd5 {[%clk 0:02:42]} 10. Nxd5 {[%clk 0:02:57]}  Qxd2+ {[%clk 0:02:40]} 11. Nxd2 {[%clk 0:02:57]}  Nxd5 {[%clk 0:02:40]} 12. cxd5 {[%clk 0:02:57]}  f6 {[%clk 0:02:37]} 13. Be3 {[%clk 0:02:57]}  f5 {[%clk 0:02:30]} 14. f3 {[%clk 0:02:57]}  b6 {[%clk 0:02:18]} 15. Bb5 {[%clk 0:02:52]}  Ba6 {[%clk 0:02:12]} 16. a4 {[%clk 0:02:48]}  Bxb5 {[%clk 0:02:09]} 17. axb5 {[%clk 0:02:48]}  Nd7 {[%clk 0:02:06]} 18. Ke2 {[%clk 0:02:45]}  Nc5 {[%clk 0:02:03]} 19. Bxc5 {[%clk 0:02:45]}  bxc5 {[%clk 0:01:52]} 20. Ra5 {[%clk 0:02:43]}  Rfb8 {[%clk 0:01:41]} 21. Rha1 {[%clk 0:02:42]}  Rb7 {[%clk 0:01:40]} 22. Nc4 {[%clk 0:02:42]}  Bf8 {[%clk 0:01:39]} 23. b6 {[%clk 0:02:40]}  Rab8 {[%clk 0:01:13]} 24. Rxa7 {[%clk 0:02:39]}  fxe4 {[%clk 0:01:06]} 25. fxe4 {[%clk 0:02:38]}  Be7 {[%clk 0:01:01]} 26. Rxb7 {[%clk 0:02:37]}  Rxb7 {[%clk 0:00:53]} 27. Ra7 {[%clk 0:02:37]} 1-0


[Site "https://www.chess.com"]

[Event "Titled Tuesday Blitz August 1 Late 2023"]
[White "FromTexas54"]
[Black "ilya2700"]
[WhiteElo "2511"]
[BlackElo "2083"]
[Result "1-0"]
[Round "1"]
[TimeControl "180+1"]
[Date "2023.08.01"]
[WhiteClock "0:01:38"]
[BlackClock "0:00:00"]
[Board "178"]

1. Nf3 {[%clk 0:02:58]}  Nf6 {[%clk 0:02:59]} 2. g3 {[%clk 0:02:59]}  d5 {[%clk 0:03:00]} 3. Bg2 {[%clk 0:03:00]}  e6 {[%clk 0:03:00]} 4. O-O {[%clk 0:03:01]}  Be7 {[%clk 0:03:01]} 5. d3 {[%clk 0:03:02]}  O-O {[%clk 0:03:01]} 6. Nbd2 {[%clk 0:03:02]}  Nbd7 {[%clk 0:03:02]} 7. e4 {[%clk 0:03:03]}  b6 {[%clk 0:03:02]} 8. e5 {[%clk 0:03:03]}  Ne8 {[%clk 0:03:02]} 9. Re1 {[%clk 0:03:03]}  Bb7 {[%clk 0:03:02]} 10. h4 {[%clk 0:03:04]}  c5 {[%clk 0:03:00]} 11. Nf1 {[%clk 0:03:04]}  Rc8 {[%clk 0:02:54]} 12. h5 {[%clk 0:03:04]}  h6 {[%clk 0:02:54]} 13. N1h2 {[%clk 0:03:04]}  c4 {[%clk 0:02:45]} 14. Ng4 {[%clk 0:03:03]}  cxd3 {[%clk 0:02:42]} 15. cxd3 {[%clk 0:03:04]}  f5 {[%clk 0:02:30]} 16. exf6 {[%clk 0:03:03]}  Ndxf6 {[%clk 0:02:29]} 17. Nxf6+ {[%clk 0:03:01]}  Rxf6 {[%clk 0:02:19]} 18. Ne5 {[%clk 0:02:59]}  Qc7 {[%clk 0:02:15]} 19. Bf4 {[%clk 0:02:58]}  Bd6 {[%clk 0:02:14]} 20. Rc1 {[%clk 0:02:58]}  Qd8 {[%clk 0:02:07]} 21. Rxc8 {[%clk 0:02:54]}  Qxc8 {[%clk 0:02:05]} 22. Qg4 {[%clk 0:02:55]}  Qc5 {[%clk 0:02:00]} 23. Ng6 {[%clk 0:02:48]}  e5 {[%clk 0:01:49]} 24. Bxe5 {[%clk 0:02:41]}  Qxf2+ {[%clk 0:01:42]} 25. Kh2 {[%clk 0:02:41]}  Qxe1 {[%clk 0:01:39]} 26. Qd7 {[%clk 0:02:18]}  Bc6 {[%clk 0:00:22]} 27. Qxc6 {[%clk 0:02:14]}  Re6 {[%clk 0:00:11]} 28. Qxd5 {[%clk 0:02:09]}  Kf7 {[%clk 0:00:09]} 29. Bxd6 {[%clk 0:01:46]}  Nxd6 {[%clk 0:00:10]} 30. Nf4 {[%clk 0:01:45]}  Nf5 {[%clk 0:00:07]} 31. Qxf5+ {[%clk 0:01:44]}  Rf6 {[%clk 0:00:07]} 32. Bd5+ {[%clk 0:01:44]}  Kf8 {[%clk 0:00:06]} 33. Qc8+ {[%clk 0:01:43]}  Qe8 {[%clk 0:00:07]} 34. Ng6+ {[%clk 0:01:39]}  Rxg6 {[%clk 0:00:00]} 35. Qxe8+ {[%clk 0:01:38]} 1-0


[Site "https://www.chess.com"]

[Event "Titled Tuesday Blitz August 1 Late 2023"]
[White "Dushyant Sharma"]
[Black "Dominguez Rincon, Miller Duvan"]
[WhiteFideId "25065130"]
[BlackFideId "4406583"]
[WhiteElo "2502"]
[BlackElo "1988"]
[Result "1-0"]
[Round "1"]
[TimeControl "180+1"]
[Date "2023.08.01"]
[WhiteClock "0:02:20"]
[BlackClock "0:00:18"]
[Board "186"]

1. e4 {[%clk 0:02:53]}  e5 {[%clk 0:02:59]} 2. Nf3 {[%clk 0:02:53]}  Nc6 {[%clk 0:02:59]} 3. Nc3 {[%clk 0:02:53]}  Nf6 {[%clk 0:02:59]} 4. Bb5 {[%clk 0:02:53]}  Bb4 {[%clk 0:02:59]} 5. O-O {[%clk 0:02:53]}  O-O {[%clk 0:02:58]} 6. d3 {[%clk 0:02:53]}  Bxc3 {[%clk 0:02:57]} 7. bxc3 {[%clk 0:02:54]}  d6 {[%clk 0:02:57]} 8. Bg5 {[%clk 0:02:55]}  Qe7 {[%clk 0:02:56]} 9. Re1 {[%clk 0:02:55]}  Nd8 {[%clk 0:02:55]} 10. d4 {[%clk 0:02:55]}  h6 {[%clk 0:02:51]} 11. Bh4 {[%clk 0:02:55]}  Bg4 {[%clk 0:02:24]} 12. h3 {[%clk 0:02:54]}  Bh5 {[%clk 0:02:22]} 13. g4 {[%clk 0:02:54]}  Bg6 {[%clk 0:02:22]} 14. Bd3 {[%clk 0:02:54]}  Bh7 {[%clk 0:02:10]} 15. Qd2 {[%clk 0:02:54]}  g5 {[%clk 0:02:08]} 16. Nxg5 {[%clk 0:02:53]}  Kh8 {[%clk 0:01:33]} 17. Nxh7 {[%clk 0:02:49]}  Kxh7 {[%clk 0:01:34]} 18. f4 {[%clk 0:02:49]}  Rg8 {[%clk 0:01:30]} 19. fxe5 {[%clk 0:02:47]}  dxe5 {[%clk 0:01:31]} 20. Rf1 {[%clk 0:02:47]}  Rg6 {[%clk 0:01:29]} 21. Qh2 {[%clk 0:02:43]}  Nc6 {[%clk 0:01:26]} 22. Rf5 {[%clk 0:02:41]}  Qd6 {[%clk 0:00:58]} 23. dxe5 {[%clk 0:02:39]}  Qc5+ {[%clk 0:00:53]} 24. Qf2 {[%clk 0:02:37]}  Qxc3 {[%clk 0:00:47]} 25. Rf1 {[%clk 0:02:36]}  Nxg4 {[%clk 0:00:38]} 26. Rxf7+ {[%clk 0:02:35]}  Kh8 {[%clk 0:00:35]} 27. Rf8+ {[%clk 0:02:32]}  Kh7 {[%clk 0:00:34]} 28. Rf7+ {[%clk 0:02:22]}  Kh8 {[%clk 0:00:31]} 29. hxg4 {[%clk 0:02:23]}  Rxg4+ {[%clk 0:00:28]} 30. Kh1 {[%clk 0:02:23]}  Rag8 {[%clk 0:00:20]} 31. Qf6+ {[%clk 0:02:19]}  R4g7 {[%clk 0:00:19]} 32. Qxh6+ {[%clk 0:02:20]}  Rh7 {[%clk 0:00:18]} 33. Qxh7# {[%clk 0:02:20]} 1-0


[Site "https://www.chess.com"]

[Event "Titled Tuesday Blitz August 1 Late 2023"]
[White "Khandelwal, Ankush"]
[Black "Burke, Paul"]
[WhiteFideId "413470"]
[BlackFideId "2605767"]
[WhiteElo "2499"]
[BlackElo "1890"]
[Result "1-0"]
[Round "1"]
[TimeControl "180+1"]
[Date "2023.08.01"]
[WhiteClock "0:00:58"]
[BlackClock "0:01:00"]
[Board "190"]

1. e4 {[%clk 0:02:52]}  e5 {[%clk 0:02:59]} 2. Nf3 {[%clk 0:02:51]}  Nc6 {[%clk 0:02:58]} 3. Bc4 {[%clk 0:02:50]}  Be7 {[%clk 0:02:57]} 4. O-O {[%clk 0:02:41]}  Nf6 {[%clk 0:02:54]} 5. d3 {[%clk 0:02:37]}  d6 {[%clk 0:02:54]} 6. a4 {[%clk 0:02:32]}  O-O {[%clk 0:02:53]} 7. a5 {[%clk 0:02:29]}  Be6 {[%clk 0:02:51]} 8. Re1 {[%clk 0:02:15]}  Bxc4 {[%clk 0:02:50]} 9. dxc4 {[%clk 0:02:14]}  h6 {[%clk 0:02:50]} 10. Nc3 {[%clk 0:02:06]}  Qd7 {[%clk 0:02:39]} 11. Nd5 {[%clk 0:01:59]}  Nxd5 {[%clk 0:02:36]} 12. cxd5 {[%clk 0:01:57]}  Nb8 {[%clk 0:02:36]} 13. b4 {[%clk 0:01:52]}  f5 {[%clk 0:02:34]} 14. exf5 {[%clk 0:01:51]}  Qxf5 {[%clk 0:02:34]} 15. Qe2 {[%clk 0:01:42]}  Nd7 {[%clk 0:02:28]} 16. c4 {[%clk 0:01:42]}  Bf6 {[%clk 0:02:16]} 17. Nd2 {[%clk 0:01:40]}  Rae8 {[%clk 0:02:05]} 18. Ne4 {[%clk 0:01:40]}  Bd8 {[%clk 0:01:55]} 19. Ra3 {[%clk 0:01:25]}  Nf6 {[%clk 0:01:52]} 20. f3 {[%clk 0:01:25]}  Nxe4 {[%clk 0:01:49]} 21. fxe4 {[%clk 0:01:20]}  Qf7 {[%clk 0:01:41]} 22. Rf3 {[%clk 0:01:10]}  Bf6 {[%clk 0:01:39]} 23. Ref1 {[%clk 0:01:07]}  Qg6 {[%clk 0:01:37]} 24. Rg3 {[%clk 0:01:03]}  Qh7 {[%clk 0:01:36]} 25. Qh5 {[%clk 0:01:00]}  Kh8 {[%clk 0:01:10]} 26. Rxf6 {[%clk 0:00:58]}  gxf6 {[%clk 0:01:00]} 27. Rg6 {[%clk 0:00:58]} 1-0


[Site "https://www.chess.com"]

[Event "Titled Tuesday Blitz August 1 Late 2023"]
[White "Carlsen, Magnus"]
[Black "Ganiev, Roman"]
[WhiteFideId "1503014"]
[BlackFideId "4131452"]
[WhiteElo "3255"]
[BlackElo "2583"]
[Result "1-0"]
[Round "2"]
[TimeControl "180+1"]
[Date "2023.08.01"]
[WhiteClock "0:01:11"]
[BlackClock "0:00:01"]
[Board "1"]

1. b3 {[%clk 0:02:43]}  e5 {[%clk 0:02:52]} 2. Bb2 {[%clk 0:02:32]}  Nc6 {[%clk 0:02:52]} 3. g3 {[%clk 0:02:23]}  Nf6 {[%clk 0:02:52]} 4. Bg2 {[%clk 0:02:24]}  d5 {[%clk 0:02:52]} 5. d3 {[%clk 0:02:23]}  Be7 {[%clk 0:02:52]} 6. Nf3 {[%clk 0:02:21]}  Qd6 {[%clk 0:02:49]} 7. O-O {[%clk 0:02:16]}  O-O {[%clk 0:02:48]} 8. c4 {[%clk 0:02:16]}  Bg4 {[%clk 0:02:39]} 9. h3 {[%clk 0:02:03]}  Bxf3 {[%clk 0:02:08]} 10. Bxf3 {[%clk 0:02:03]}  e4 {[%clk 0:02:09]} 11. cxd5 {[%clk 0:01:57]}  exf3 {[%clk 0:02:07]} 12. dxc6 {[%clk 0:01:58]}  Qxc6 {[%clk 0:01:45]} 13. exf3 {[%clk 0:01:53]}  Rad8 {[%clk 0:01:45]} 14. Kg2 {[%clk 0:01:51]}  Nd5 {[%clk 0:00:59]} 15. Nd2 {[%clk 0:01:44]}  Bf6 {[%clk 0:00:59]} 16. Rc1 {[%clk 0:01:35]}  Qd7 {[%clk 0:00:59]} 17. Bxf6 {[%clk 0:01:35]}  Nxf6 {[%clk 0:00:59]} 18. Ne4 {[%clk 0:01:35]}  Nd5 {[%clk 0:00:55]} 19. Rc4 {[%clk 0:01:30]}  Nb6 {[%clk 0:00:45]} 20. Nc5 {[%clk 0:01:25]}  Qd5 {[%clk 0:00:38]} 21. Rc2 {[%clk 0:01:23]}  Rfe8 {[%clk 0:00:37]} 22. Re1 {[%clk 0:01:23]}  Nc8 {[%clk 0:00:21]} 23. Ne4 {[%clk 0:01:18]}  c6 {[%clk 0:00:18]} 24. Rce2 {[%clk 0:01:17]}  Kf8 {[%clk 0:00:18]} 25. Qc1 {[%clk 0:01:15]}  Qd4 {[%clk 0:00:12]} 26. Qa3+ {[%clk 0:01:14]}  c5 {[%clk 0:00:05]} 27. Nxc5 {[%clk 0:01:13]}  Qd6 {[%clk 0:00:04]} 28. Nd7+ {[%clk 0:01:12]}  Rxd7 {[%clk 0:00:01]} 29. Rxe8# {[%clk 0:01:11]} 1-0


[Site "https://www.chess.com"]

[Event "Titled Tuesday Blitz August 1 Late 2023"]
[White "Ibadov, Dashgyn"]
[Black "Firouzja, Alireza"]
[WhiteFideId "24107514"]
[BlackFideId "12573981"]
[WhiteElo "2581"]
[BlackElo "3083"]
[Result "0-1"]
[Round "2"]
[TimeControl "180+1"]
[Date "2023.08.01"]
[WhiteClock "0:00:00"]
[BlackClock "0:00:42"]
[Board "2"]

1. e4 {[%clk 0:03:00]}  c5 {[%clk 0:02:58]} 2. Nf3 {[%clk 0:03:00]}  d6 {[%clk 0:02:59]} 3. d4 {[%clk 0:02:59]}  cxd4 {[%clk 0:02:59]} 4. Nxd4 {[%clk 0:03:00]}  Nf6 {[%clk 0:03:00]} 5. Nc3 {[%clk 0:03:00]}  a6 {[%clk 0:03:00]} 6. Bg5 {[%clk 0:02:59]}  e6 {[%clk 0:02:57]} 7. Qe2 {[%clk 0:02:58]}  Nbd7 {[%clk 0:02:52]} 8. O-O-O {[%clk 0:02:54]}  Qc7 {[%clk 0:02:48]} 9. g4 {[%clk 0:02:50]}  h6 {[%clk 0:02:45]} 10. Bxf6 {[%clk 0:02:43]}  Nxf6 {[%clk 0:02:39]} 11. Bg2 {[%clk 0:02:43]}  Bd7 {[%clk 0:02:38]} 12. h4 {[%clk 0:02:43]}  g6 {[%clk 0:02:29]} 13. g5 {[%clk 0:02:41]}  Nh5 {[%clk 0:02:26]} 14. Bf3 {[%clk 0:02:22]}  Nf4 {[%clk 0:02:19]} 15. Qe3 {[%clk 0:02:22]}  e5 {[%clk 0:02:09]} 16. Nd5 {[%clk 0:02:10]}  Nxd5 {[%clk 0:02:09]} 17. exd5 {[%clk 0:02:11]}  O-O-O {[%clk 0:02:04]} 18. Nb3 {[%clk 0:02:04]}  Kb8 {[%clk 0:02:01]} 19. Kb1 {[%clk 0:01:59]}  hxg5 {[%clk 0:01:54]} 20. hxg5 {[%clk 0:01:58]}  Be7 {[%clk 0:01:54]} 21. Be4 {[%clk 0:01:50]}  Bf5 {[%clk 0:01:44]} 22. f4 {[%clk 0:01:42]}  exf4 {[%clk 0:01:42]} 23. Qxf4 {[%clk 0:01:37]}  Bxe4 {[%clk 0:01:41]} 24. Qxe4 {[%clk 0:01:37]}  Bxg5 {[%clk 0:01:41]} 25. a4 {[%clk 0:01:24]}  Bf6 {[%clk 0:01:38]} 26. Rhf1 {[%clk 0:01:21]}  Be5 {[%clk 0:01:37]} 27. a5 {[%clk 0:01:11]}  Rh2 {[%clk 0:01:29]} 28. Rh1 {[%clk 0:00:49]}  f5 {[%clk 0:01:26]} 29. Qd3 {[%clk 0:00:43]}  Rdh8 {[%clk 0:01:25]} 30. Rxh2 {[%clk 0:00:40]}  Rxh2 {[%clk 0:01:26]} 31. Nd2 {[%clk 0:00:32]}  Rh4 {[%clk 0:01:14]} 32. Nf3 {[%clk 0:00:25]}  Re4 {[%clk 0:01:14]} 33. Nxe5 {[%clk 0:00:23]}  Rxe5 {[%clk 0:01:14]} 34. b4 {[%clk 0:00:10]}  g5 {[%clk 0:01:10]} 35. Rh1 {[%clk 0:00:08]}  Re4 {[%clk 0:01:09]} 36. Qd2 {[%clk 0:00:04]}  Qc4 {[%clk 0:01:02]} 37. Rh8+ {[%clk 0:00:03]}  Ka7 {[%clk 0:01:03]} 38. Qf2+ {[%clk 0:00:03]}  Rd4 {[%clk 0:00:55]} 39. Rc8 {[%clk 0:00:01]}  Qxb4+ {[%clk 0:00:54]} 40. Kc1 {[%clk 0:00:01]}  b6 {[%clk 0:00:44]} 41. c3 {[%clk 0:00:01]}  Qa3+ {[%clk 0:00:42]} 42. Kc2 {[%clk 0:00:00]}  Qa2+ {[%clk 0:00:42]} 0-1


[Site "https://www.chess.com"]

[Event "Titled Tuesday Blitz August 1 Late 2023"]
[White "Rostomyan, Mikayel"]
[Black "Aronian, Levon"]
[WhiteFideId "13313754"]
[BlackFideId "13300474"]
[WhiteElo "2578"]
[BlackElo "3060"]
[Result "0-1"]
[Round "2"]
[TimeControl "180+1"]
[Date "2023.08.01"]
[WhiteClock "0:00:42"]
[BlackClock "0:01:59"]
[Board "3"]

1. d4 {[%clk 0:03:00]}  Nf6 {[%clk 0:02:59]} 2. Nf3 {[%clk 0:02:59]}  g6 {[%clk 0:02:59]} 3. c4 {[%clk 0:02:54]}  Bg7 {[%clk 0:02:59]} 4. g3 {[%clk 0:02:54]}  O-O {[%clk 0:02:59]} 5. Bg2 {[%clk 0:02:54]}  Nc6 {[%clk 0:03:00]} 6. Nc3 {[%clk 0:02:51]}  Rb8 {[%clk 0:03:00]} 7. O-O {[%clk 0:02:51]}  a6 {[%clk 0:03:00]} 8. d5 {[%clk 0:02:51]}  Na5 {[%clk 0:03:00]} 9. Nd2 {[%clk 0:02:35]}  c5 {[%clk 0:02:56]} 10. d6 {[%clk 0:02:25]}  exd6 {[%clk 0:02:50]} 11. Nce4 {[%clk 0:02:00]}  Nxe4 {[%clk 0:02:48]} 12. Nxe4 {[%clk 0:02:00]}  Nxc4 {[%clk 0:02:47]} 13. Nxd6 {[%clk 0:02:00]}  b5 {[%clk 0:02:45]} 14. Nxc4 {[%clk 0:01:38]}  bxc4 {[%clk 0:02:44]} 15. Qd6 {[%clk 0:01:36]}  Qb6 {[%clk 0:02:38]} 16. Bf4 {[%clk 0:01:24]}  Qxd6 {[%clk 0:02:37]} 17. Bxd6 {[%clk 0:01:24]}  Rxb2 {[%clk 0:02:38]} 18. Bxf8 {[%clk 0:01:22]}  Kxf8 {[%clk 0:02:38]} 19. Rac1 {[%clk 0:01:17]}  c3 {[%clk 0:02:38]} 20. Rfd1 {[%clk 0:01:12]}  Rxe2 {[%clk 0:02:29]} 21. Bd5 {[%clk 0:01:09]}  Bd4 {[%clk 0:02:27]} 22. Rf1 {[%clk 0:01:08]}  d6 {[%clk 0:02:26]} 23. Kg2 {[%clk 0:01:07]}  Bf5 {[%clk 0:02:15]} 24. Kf3 {[%clk 0:01:04]}  Rb2 {[%clk 0:02:13]} 25. Bc4 {[%clk 0:00:55]}  a5 {[%clk 0:02:07]} 26. g4 {[%clk 0:00:52]}  Bd7 {[%clk 0:02:05]} 27. Kg3 {[%clk 0:00:51]}  Bc6 {[%clk 0:02:04]} 28. Rb1 {[%clk 0:00:42]}  Be4 {[%clk 0:01:59]} 0-1


[Site "https://www.chess.com"]

[Event "Titled Tuesday Blitz August 1 Late 2023"]
[White "Andreikin, Dmitry"]
[Black "Wen, Tommy"]
[WhiteFideId "4158814"]
[BlackFideId "30952255"]
[WhiteElo "3051"]
[BlackElo "2577"]
[Result "1-0"]
[Round "2"]
[TimeControl "180+1"]
[Date "2023.08.01"]
[WhiteClock "0:01:56"]
[BlackClock "0:00:43"]
[Board "4"]

1. d4 {[%clk 0:03:00]}  Nf6 {[%clk 0:02:52]} 2. c4 {[%clk 0:03:00]}  g6 {[%clk 0:02:53]} 3. Nc3 {[%clk 0:03:01]}  d5 {[%clk 0:02:49]} 4. cxd5 {[%clk 0:03:02]}  Nxd5 {[%clk 0:02:49]} 5. e4 {[%clk 0:03:02]}  Nxc3 {[%clk 0:02:49]} 6. bxc3 {[%clk 0:03:03]}  Bg7 {[%clk 0:02:49]} 7. Nf3 {[%clk 0:03:03]}  c5 {[%clk 0:02:49]} 8. Be2 {[%clk 0:03:03]}  Nc6 {[%clk 0:02:49]} 9. d5 {[%clk 0:03:02]}  Bxc3+ {[%clk 0:02:48]} 10. Bd2 {[%clk 0:03:02]}  Bxa1 {[%clk 0:02:49]} 11. Qxa1 {[%clk 0:03:02]}  Nd4 {[%clk 0:02:50]} 12. Nxd4 {[%clk 0:03:03]}  cxd4 {[%clk 0:02:51]} 13. O-O {[%clk 0:03:03]}  O-O {[%clk 0:02:49]} 14. Qxd4 {[%clk 0:03:00]}  Qb6 {[%clk 0:02:49]} 15. Qa1 {[%clk 0:03:00]}  Bd7 {[%clk 0:02:47]} 16. Bh6 {[%clk 0:02:59]}  f6 {[%clk 0:02:46]} 17. Rb1 {[%clk 0:02:59]}  Qc7 {[%clk 0:02:46]} 18. Bxf8 {[%clk 0:02:59]}  Rxf8 {[%clk 0:02:47]} 19. Qd4 {[%clk 0:02:58]}  b6 {[%clk 0:02:44]} 20. Bc4 {[%clk 0:02:50]}  Kg7 {[%clk 0:02:34]} 21. h3 {[%clk 0:02:49]}  Rc8 {[%clk 0:02:33]} 22. Bb3 {[%clk 0:02:49]}  Qc3 {[%clk 0:02:27]} 23. Qd1 {[%clk 0:02:46]}  f5 {[%clk 0:02:22]} 24. exf5 {[%clk 0:02:42]}  Bxf5 {[%clk 0:02:22]} 25. Ra1 {[%clk 0:02:40]}  Qe5 {[%clk 0:02:06]} 26. Qf1 {[%clk 0:02:31]}  Bd3 {[%clk 0:01:55]} 27. Re1 {[%clk 0:02:30]}  Rc1 {[%clk 0:01:33]} 28. Rxe5 {[%clk 0:02:25]}  Rxf1+ {[%clk 0:01:32]} 29. Kh2 {[%clk 0:02:26]}  Rxf2 {[%clk 0:01:20]} 30. Rxe7+ {[%clk 0:02:22]}  Rf7 {[%clk 0:01:21]} 31. Re3 {[%clk 0:02:16]}  Bb5 {[%clk 0:01:16]} 32. h4 {[%clk 0:02:16]}  Rd7 {[%clk 0:01:15]} 33. Kg3 {[%clk 0:02:15]}  Kf6 {[%clk 0:01:15]} 34. Re6+ {[%clk 0:02:11]}  Kg7 {[%clk 0:01:11]} 35. Kf4 {[%clk 0:02:11]}  Bf1 {[%clk 0:01:05]} 36. g4 {[%clk 0:02:04]}  Kf8 {[%clk 0:01:00]} 37. d6 {[%clk 0:02:02]}  a5 {[%clk 0:00:56]} 38. Ke5 {[%clk 0:01:59]}  Bh3 {[%clk 0:00:55]} 39. Ba4 {[%clk 0:01:56]}  Rd8 {[%clk 0:00:43]} 40. d7 {[%clk 0:01:56]} 1-0


[Site "https://www.chess.com"]

[Event "Titled Tuesday Blitz August 1 Late 2023"]
[White "Makarian, Rudik"]
[Black "ElenGajger"]
[WhiteFideId "44105681"]
[WhiteElo "3018"]
[BlackElo "2575"]
[Result "1-0"]
[Round "2"]
[TimeControl "180+1"]
[Date "2023.08.01"]
[WhiteClock "0:00:33"]
[BlackClock "0:01:17"]
[Board "5"]

1. d4 {[%clk 0:03:00]}  Nf6 {[%clk 0:02:59]} 2. c4 {[%clk 0:03:00]}  g6 {[%clk 0:03:00]} 3. Nc3 {[%clk 0:03:00]}  d5 {[%clk 0:03:00]} 4. Bg5 {[%clk 0:03:00]}  Ne4 {[%clk 0:03:00]} 5. cxd5 {[%clk 0:02:59]}  Nxg5 {[%clk 0:02:59]} 6. h4 {[%clk 0:03:00]}  Ne4 {[%clk 0:02:58]} 7. Nxe4 {[%clk 0:03:00]}  Qxd5 {[%clk 0:02:58]} 8. Nc3 {[%clk 0:03:00]}  Qa5 {[%clk 0:02:58]} 9. h5 {[%clk 0:03:00]}  Bg7 {[%clk 0:02:57]} 10. h6 {[%clk 0:03:00]}  Bf6 {[%clk 0:02:57]} 11. e3 {[%clk 0:03:00]}  O-O {[%clk 0:02:57]} 12. Qd2 {[%clk 0:03:00]}  c5 {[%clk 0:02:55]} 13. d5 {[%clk 0:02:50]}  Rd8 {[%clk 0:02:52]} 14. Nf3 {[%clk 0:02:48]}  e6 {[%clk 0:02:36]} 15. O-O-O {[%clk 0:02:20]}  Bxc3 {[%clk 0:02:34]} 16. Qxc3 {[%clk 0:02:20]}  Qxc3+ {[%clk 0:02:34]} 17. bxc3 {[%clk 0:02:21]}  Rxd5 {[%clk 0:02:34]} 18. Bc4 {[%clk 0:02:20]}  Rxd1+ {[%clk 0:02:32]} 19. Rxd1 {[%clk 0:02:20]}  Nd7 {[%clk 0:02:26]} 20. Ne5 {[%clk 0:01:56]}  Nf8 {[%clk 0:02:25]} 21. Rd8 {[%clk 0:01:57]}  b5 {[%clk 0:02:26]} 22. Bxb5 {[%clk 0:01:12]}  Bb7 {[%clk 0:02:25]} 23. Rxa8 {[%clk 0:01:11]}  Bxa8 {[%clk 0:02:25]} 24. Bc6 {[%clk 0:01:08]}  Bxc6 {[%clk 0:02:24]} 25. Nxc6 {[%clk 0:01:09]}  a6 {[%clk 0:02:17]} 26. Nb8 {[%clk 0:01:05]}  a5 {[%clk 0:02:17]} 27. Kb2 {[%clk 0:01:01]}  f5 {[%clk 0:02:11]} 28. Nc6 {[%clk 0:01:00]}  a4 {[%clk 0:02:09]} 29. Ka3 {[%clk 0:01:00]}  Kf7 {[%clk 0:02:05]} 30. Kxa4 {[%clk 0:00:59]}  Nd7 {[%clk 0:02:04]} 31. Kb5 {[%clk 0:00:59]}  e5 {[%clk 0:02:03]} 32. a4 {[%clk 0:00:59]}  Ke6 {[%clk 0:02:03]} 33. a5 {[%clk 0:00:59]}  Kd6 {[%clk 0:02:03]} 34. a6 {[%clk 0:00:53]}  Kc7 {[%clk 0:02:03]} 35. Ne7 {[%clk 0:00:53]}  Nf6 {[%clk 0:01:46]} 36. Kxc5 {[%clk 0:00:46]}  Ne4+ {[%clk 0:01:45]} 37. Kd5 {[%clk 0:00:41]}  Nxf2 {[%clk 0:01:45]} 38. Nxg6 {[%clk 0:00:39]}  Ng4 {[%clk 0:01:40]} 39. Nxe5 {[%clk 0:00:35]}  Nxe3+ {[%clk 0:01:39]} 40. Ke6 {[%clk 0:00:36]}  f4 {[%clk 0:01:35]} 41. Kf6 {[%clk 0:00:33]}  Nxg2 {[%clk 0:01:31]} 42. Kg7 {[%clk 0:00:33]}  Ne3 {[%clk 0:01:21]} 43. Kxh7 {[%clk 0:00:32]}  Nf5 {[%clk 0:01:20]} 44. Kg6 {[%clk 0:00:30]}  Nxh6 {[%clk 0:01:19]} 45. Kxh6 {[%clk 0:00:31]}  Kb6 {[%clk 0:01:20]} 46. Kg5 {[%clk 0:00:31]}  f3 {[%clk 0:01:17]} 47. Nxf3 {[%clk 0:00:30]}  Kxa6 {[%clk 0:01:18]} 48. Kf4 {[%clk 0:00:31]}  Kb5 {[%clk 0:01:19]} 49. Ke3 {[%clk 0:00:31]}  Kc4 {[%clk 0:01:20]} 50. Kd2 {[%clk 0:00:32]}  Kc5 {[%clk 0:01:17]} 51. Kd3 {[%clk 0:00:33]} 1-0


[Site "https://www.chess.com"]

[Event "Titled Tuesday Blitz August 1 Late 2023"]
[White "Nozdrachev, Leonid"]
[Black "Xiong, Jeffery"]
[WhiteFideId "24113433"]
[BlackFideId "2047640"]
[WhiteElo "2567"]
[BlackElo "2992"]
[Result "0-1"]
[Round "2"]
[TimeControl "180+1"]
[Date "2023.08.01"]
[WhiteClock "0:01:10"]
[BlackClock "0:02:25"]
[Board "8"]

1. e4 {[%clk 0:02:59]}  c5 {[%clk 0:02:59]} 2. c3 {[%clk 0:02:57]}  e6 {[%clk 0:02:58]} 3. d4 {[%clk 0:02:56]}  cxd4 {[%clk 0:02:59]} 4. cxd4 {[%clk 0:02:56]}  d5 {[%clk 0:03:00]} 5. e5 {[%clk 0:02:53]}  Nc6 {[%clk 0:03:00]} 6. Nc3 {[%clk 0:02:53]}  Nge7 {[%clk 0:03:00]} 7. Be3 {[%clk 0:02:51]}  Nf5 {[%clk 0:03:00]} 8. Nf3 {[%clk 0:02:49]}  Qb6 {[%clk 0:02:51]} 9. Bd3 {[%clk 0:02:23]}  Nxe3 {[%clk 0:02:38]} 10. fxe3 {[%clk 0:02:24]}  Qxb2 {[%clk 0:02:38]} 11. Nb5 {[%clk 0:02:20]}  Qxg2 {[%clk 0:02:30]} 12. Nc7+ {[%clk 0:01:38]}  Kd8 {[%clk 0:02:30]} 13. Nxa8 {[%clk 0:01:39]}  Bb4+ {[%clk 0:02:27]} 14. Nd2 {[%clk 0:01:35]}  Qxh1+ {[%clk 0:02:27]} 15. Bf1 {[%clk 0:01:35]}  Qxh2 {[%clk 0:02:27]} 16. Qe2 {[%clk 0:01:23]}  Qxe2+ {[%clk 0:02:26]} 17. Bxe2 {[%clk 0:01:10]}  b6 {[%clk 0:02:25]} 0-1


[Site "https://www.chess.com"]